bitfinex/quotes_BTCUSD_20241020
["timestamp","ask_amount","ask_price","bid_price","bid_amount"]
[1729420324448,0.000827,68421.0,68420.0,0.22119403]
[1729420327413,0.000827,68421.0,68420.0,0.12119477]
[1729420327667,0.000827,68421.0,68420.0,0.22119477]
[1729420329895,0.000827,68421.0,68420.0,0.111654]
[1729420330137,0.000827,68421.0,68420.0,0.011654]
[1729420332260,0.000827,68421.0,68420.0,0.2212017]
[1729420333479,0.098427,68421.0,68420.0,0.2212017]
[1729420337144,0.098427,68421.0,68420.0,0.22120301]
[1729420338446,0.098427,68421.0,68420.0,0.011654]
[1729420338654,0.098427,68421.0,68420.0,0.22120352]
[1729420339369,0.098427,68421.0,68420.0,0.21620352]
[1729420341385,0.098427,68421.0,68420.0,0.22120352]
[1729420342032,0.098427,68421.0,68420.0,0.111654]
[1729420342254,0.098427,68421.0,68420.0,0.22120634]
[1729420344588,0.098427,68421.0,68420.0,0.21620634]
[1729420344793,0.098427,68421.0,68420.0,0.22120634]
[1729420344999,0.098427,68421.0,68420.0,0.21620634]
[1729420345633,0.098427,68421.0,68420.0,0.22120634]
[1729420346925,0.098427,68421.0,68420.0,0.12120439]
[1729420347162,0.098427,68421.0,68420.0,0.22120439]
[1729420351893,0.098427,68421.0,68420.0,0.12120516]
[1729420352026,0.098427,68421.0,68420.0,0.111654]
[1729420352228,0.098427,68421.0,68420.0,0.22120137]
[1729420353507,0.000827,68421.0,68420.0,0.22120137]
[1729420356889,0.000827,68421.0,68420.0,0.22120476]
[1729420361728,0.000827,68421.0,68420.0,0.22120444]
[1729420362817,0.000827,68421.0,68420.0,0.011654]
[1729420363227,0.000827,68421.0,68420.0,0.221205]
[1729420364962,0.000827,68421.0,68420.0,0.011654]
[1729420366143,0.000827,68421.0,68420.0,0.22120687]
[1729420366566,0.000827,68421.0,68420.0,0.111654]
[1729420366765,0.000827,68421.0,68420.0,0.22120624]
[1729420367177,0.000827,68421.0,68420.0,0.011654]
[1729420367845,0.000827,68421.0,68420.0,0.22120594]
[1729420371123,0.000827,68421.0,68420.0,0.12120673]
[1729420371383,0.000827,68421.0,68420.0,0.22120673]
[1729420374312,0.100727,68421.0,68420.0,0.22120673]
[1729420376140,0.100727,68421.0,68420.0,0.011654]
[1729420376273,0.100727,68421.0,68420.0,0.22120884]
[1729420378273,0.100727,68421.0,68420.0,0.111654]
[1729420378475,0.100727,68421.0,68420.0,0.011654]
[1729420378900,0.100727,68421.0,68420.0,0.22121141]
[1729420379104,0.100727,68421.0,68420.0,0.111654]
[1729420379312,0.100727,68421.0,68420.0,0.22121113]
[1729420379512,0.100727,68421.0,68420.0,0.111654]
[1729420379722,0.100727,68421.0,68420.0,0.22121116]
[1729420380366,0.100727,68421.0,68420.0,0.111654]
[1729420380573,0.100727,68421.0,68420.0,0.2212151]
[1729420380787,0.100727,68421.0,68420.0,0.22121509]
[1729420383995,0.100727,68421.0,68420.0,0.12121339]
[1729420384408,0.100727,68421.0,68420.0,0.22121339]
[1729420384795,0.100727,68421.0,68420.0,0.22121312]
[1729420389761,0.100727,68421.0,68420.0,0.22121382]
[1729420394537,0.100727,68421.0,68420.0,0.111654]
[1729420394806,0.100727,68421.0,68420.0,0.22120601]
[1729420399596,0.100727,68421.0,68420.0,0.22120121]
[1729420403494,0.000827,68421.0,68420.0,0.22120121]
[1729420403938,0.000827,68421.0,68420.0,0.21620121]
[1729420404639,0.000827,68421.0,68420.0,0.106654]
[1729420404873,0.000827,68421.0,68420.0,0.21620139]
[1729420405569,0.000827,68421.0,68420.0,0.106654]
[1729420406023,0.000827,68421.0,68420.0,0.21620139]
[1729420406287,0.000827,68421.0,68420.0,0.106654]
[1729420407454,0.000827,68421.0,68420.0,0.21620139]
[1729420409488,0.000827,68421.0,68420.0,0.1162038]
[1729420409935,0.000827,68421.0,68420.0,0.2162038]
[1729420410400,0.000827,68421.0,68420.0,0.21620435]
[1729420419221,0.000827,68421.0,68420.0,0.21620621]
[1729420424103,0.000827,68421.0,68420.0,0.11620831]
[1729420424386,0.000827,68421.0,68420.0,0.21620831]
[1729420425429,0.092127,68421.0,68420.0,0.106654]
[1729420425936,0.092127,68421.0,68420.0,0.19430198]
[1729420427377,0.168227,68421.0,68420.0,0.19430198]
[1729420428629,0.168227,68421.0,68420.0,0.09430198]
[1729420429080,0.168227,68421.0,68420.0,0.09429531]
[1729420436803,0.31718615,68421.0,68420.0,0.07238298]
[1729420437025,0.31718615,68421.0,68420.0,0.006654]
[1729420437506,0.31937831,68421.0,68420.0,0.006654]
[1729420439510,0.31937831,68421.0,68420.0,0.05046679]
[1729420444244,0.31937831,68421.0,68420.0,0.05046158]
[1729420445281,0.31937831,68421.0,68420.0,0.006654]
[1729420458734,0.31937831,68421.0,68420.0,0.00659504]
[1729420460729,0.31937831,68421.0,68420.0,0.00159504]
[1729420460971,0.31937831,68421.0,68420.0,0.00659504]
[1729420463297,0.31937831,68421.0,68420.0,0.00159504]
[1729420463529,0.31937831,68421.0,68420.0,0.00659504]
[1729420468950,0.31718615,68421.0,68420.0,0.00659504]
[1729420469401,0.31718615,68421.0,68420.0,0.00159504]
[1729420469627,0.31718615,68421.0,68420.0,0.00659504]
[1729420477831,0.34018615,68421.0,68420.0,0.00159504]
[1729420478048,0.34018615,68421.0,68420.0,0.00659504]
[1729420484655,0.34018615,68421.0,68420.0,0.00159504]
[1729420484858,0.34018615,68421.0,68420.0,0.00659504]
[1729420487571,0.34018615,68421.0,68420.0,0.00159504]
[1729420488894,0.34018615,68421.0,68420.0,0.00659504]
[1729420498892,0.34018615,68421.0,68413.0,0.12144613]
[1729420498893,0.023,68420.0,68413.0,0.12144613]
[1729420499101,0.14895915,68419.0,68413.0,0.02144613]
[1729420499311,0.14895915,68419.0,68411.0,0.05746969]
[1729420499522,0.14895915,68419.0,68409.0,0.08766619]
[1729420499982,0.14895915,68419.0,68408.0,0.12266619]
[1729420500201,0.14895915,68419.0,68409.0,0.08766619]
[1729420500444,0.21907885,68418.0,68409.0,0.08766619]
[1729420500658,0.14895915,68417.0,68408.0,0.1436706]
[1729420500881,0.14895915,68417.0,68409.0,0.1]
[1729420501101,0.14895915,68417.0,68409.0,0.18766364]
[1729420502655,0.14895915,68417.0,68409.0,0.19266364]
[1729420503106,0.14895915,68417.0,68409.0,0.18766364]
[1729420504468,0.14895915,68417.0,68409.0,0.08766079]
[1729420504700,0.14895915,68417.0,68409.0,0.18766079]
[1729420505595,0.14895915,68417.0,68410.0,0.18766079]
[1729420506248,0.14895915,68417.0,68410.0,0.1]
[1729420506938,0.14895915,68417.0,68409.0,0.18766079]
[1729420507153,0.14895915,68417.0,68410.0,0.18766079]
[1729420507789,0.14895915,68417.0,68412.0,0.06574516]
[1729420507996,0.14978615,68417.0,68412.0,0.06574516]
[1729420508854,0.14978615,68417.0,68416.0,0.04383098]
[1729420509271,0.14978615,68417.0,68416.0,0.04383069]
[1729420514067,0.14978615,68417.0,68415.0,0.1]
[1729420514301,0.14978615,68417.0,68416.0,0.04383218]
[1729420515603,0.000827,68417.0,68416.0,0.04383218]
[1729420515818,0.000827,68417.0,68416.0,0.06574827]
[1729420516036,0.000827,68417.0,68416.0,0.1]
[1729420516467,0.000827,68417.0,68416.0,0.14383072]
[1729420516684,0.000827,68417.0,68416.0,0.1]
[1729420517128,0.000827,68417.0,68415.0,0.06574827]
[1729420518012,0.000827,68417.0,68416.0,0.04383074]
[1729420518464,0.000827,68417.0,68416.0,0.14383074]
[1729420518677,0.000827,68417.0,68416.0,0.04383074]
[1729420518827,0.000827,68417.0,68416.0,0.1438308]
[1729420519040,0.000827,68417.0,68416.0,0.1]
[1729420519893,0.000827,68417.0,68415.0,0.0657462]
[1729420520768,0.000827,68417.0,68416.0,0.04383035]
[1729420521203,0.000827,68417.0,68416.0,0.14383035]
[1729420521854,0.000827,68417.0,68416.0,0.1]
[1729420522304,0.000827,68417.0,68416.0,0.14383049]
[1729420523774,0.000827,68417.0,68416.0,0.14383059]
[1729420524362,0.000827,68417.0,68416.0,0.04383059]
[1729420524768,0.000827,68417.0,68416.0,0.14383059]
[1729420526037,0.000827,68417.0,68416.0,0.04383059]
[1729420528727,0.000827,68417.0,68416.0,0.0438312]
[1729420533657,0.000827,68417.0,68416.0,0.04383044]
[1729420534300,0.000827,68417.0,68415.0,0.04383044]
[1729420534981,0.000827,68417.0,68416.0,0.04383044]
[1729420537612,0.000827,68417.0,68416.0,0.14383044]
[1729420537798,0.000827,68417.0,68416.0,0.1]
[1729420538000,0.000827,68417.0,68416.0,0.1438323]
[1729420538606,0.000827,68417.0,68416.0,0.04383234]
[1729420538839,0.000827,68417.0,68416.0,0.14383234]
[1729420539415,0.000827,68417.0,68416.0,0.1]
[1729420539621,0.000827,68417.0,68416.0,0.14383228]
[1729420540064,0.000827,68417.0,68415.0,0.06574566]
[1729420540588,0.000827,68417.0,68416.0,0.04383134]
[1729420540791,0.000827,68417.0,68416.0,0.14383134]
[1729420541699,0.000827,68417.0,68415.0,0.06574566]
[1729420542773,0.000827,68417.0,68416.0,0.06574566]
[1729420542974,0.000827,68417.0,68415.0,0.08756881]
[1729420543369,0.000827,68417.0,68416.0,0.06574487]
[1729420543837,0.000827,68417.0,68415.0,0.06574487]
[1729420545287,0.000827,68417.0,68416.0,0.06574487]
[1729420545505,0.000827,68417.0,68415.0,0.06574487]
[1729420546149,0.000827,68417.0,68416.0,0.06574487]
[1729420546566,0.000827,68417.0,68415.0,0.06574487]
[1729420547036,0.000827,68417.0,68416.0,0.06574487]
[1729420547899,0.000827,68417.0,68415.0,0.06574487]
[1729420548368,0.000827,68417.0,68415.0,0.0657404]
[1729420549076,0.000827,68417.0,68416.0,0.04382772]
[1729420549324,0.000827,68417.0,68416.0,0.14382772]
[1729420550499,0.000827,68417.0,68416.0,0.04382772]
[1729420556191,0.000827,68417.0,68415.0,0.14382772]
[1729420556857,0.093527,68417.0,68415.0,0.14382772]
[1729420557065,0.093527,68417.0,68415.0,0.04382772]
[1729420558113,0.093527,68417.0,68415.0,0.04383141]
[1729420560406,0.093527,68417.0,68416.0,0.04383141]
[1729420560611,0.093527,68417.0,68415.0,0.04383141]
[1729420563263,0.093527,68417.0,68416.0,0.04383141]
[1729420563705,0.093527,68417.0,68415.0,0.04383141]
[1729420564653,0.0778,68416.0,68415.0,0.04383141]
[1729420565527,0.0778,68416.0,68414.0,0.18856353]
[1729420565762,0.0778,68416.0,68415.0,0.1]
[1729420565981,0.0778,68416.0,68415.0,0.16574712]
[1729420566628,0.0778,68416.0,68415.0,0.1]
[1729420566850,0.0778,68416.0,68414.0,0.08856353]
[1729420569289,0.0778,68416.0,68415.0,0.14382923]
[1729420569721,0.0778,68416.0,68415.0,0.1]
[1729420570611,0.0778,68416.0,68414.0,0.08856353]
[1729420570851,0.0778,68416.0,68415.0,0.04382883]
[1729420571074,0.0778,68416.0,68415.0,0.14382886]
[1729420571500,0.0778,68416.0,68415.0,0.1]
[1729420571739,0.0778,68416.0,68415.0,0.14382855]
[1729420571945,0.0778,68416.0,68415.0,0.1]
[1729420572196,0.0778,68416.0,68414.0,0.08856353]
[1729420572622,0.093527,68417.0,68414.0,0.08856353]
[1729420572822,0.093527,68417.0,68416.0,0.04382852]
[1729420574100,0.093527,68417.0,68415.0,0.14382852]
[1729420574550,0.093527,68417.0,68415.0,0.04382852]
[1729420574983,0.093527,68417.0,68414.0,0.12281641]
[1729420575202,0.093527,68417.0,68416.0,0.04382912]
[1729420575914,0.093527,68417.0,68416.0,0.04382911]
[1729420576381,0.093527,68417.0,68415.0,0.04382911]
[1729420577556,0.0754,68416.0,68415.0,0.04382911]
[1729420580723,0.0754,68416.0,68415.0,0.04383025]
[1729420581622,0.0754,68416.0,68414.0,0.18856178]
[1729420582294,0.0754,68416.0,68414.0,0.08856178]
[1729420583511,0.0754,68416.0,68414.0,0.06739937]
[1729420585503,0.0754,68416.0,68414.0,0.06740675]
[1729420587267,0.0962,68415.0,68414.0,0.001654]
[1729420587440,0.24515915,68415.0,68414.0,0.001654]
[1729420587645,0.32055915,68415.0,68414.0,0.001654]
[1729420590314,0.34355915,68415.0,68414.0,0.001654]
[1729420594014,0.32055915,68415.0,68414.0,0.001654]
[1729420594226,0.52990518,68415.0,68414.0,0.001654]
[1729420594454,0.38373918,68415.0,68414.0,0.001654]
[1729420594675,0.52990518,68415.0,68414.0,0.001654]
[1729420594943,0.38373918,68415.0,68414.0,0.001654]
[1729420597310,0.34355915,68415.0,68414.0,0.001654]
[1729420605603,0.34438615,68415.0,68414.0,0.001654]
[1729420638704,0.34657865,68415.0,68414.0,0.001654]
[1729420641853,0.49274465,68415.0,68414.0,0.001654]
[1729420643150,0.34657865,68415.0,68414.0,0.001654]
[1729420643582,0.36770103,68415.0,68414.0,0.001654]
[1729420645323,0.34657865,68415.0,68414.0,0.001654]
[1729420645771,0.49274465,68415.0,68414.0,0.001654]
[1729420646189,0.34657865,68415.0,68414.0,0.001654]
[1729420647083,0.49274465,68415.0,68414.0,0.001654]
[1729420647358,0.34657865,68415.0,68414.0,0.001654]
[1729420647746,0.46679463,68415.0,68414.0,0.001654]
[1729420653818,0.34657865,68415.0,68414.0,0.001654]
[1729420655771,0.49274465,68415.0,68414.0,0.001654]
[1729420656472,0.63154519,68415.0,68414.0,0.001654]
[1729420656697,0.58772513,68415.0,68414.0,0.001654]
[1729420659267,0.58772513,68415.0,68414.0,0.003254]
[1729420660475,0.73668428,68415.0,68414.0,0.003254]
[1729420660920,0.78048828,68415.0,68414.0,0.003254]
[1729420661113,0.78048825,68415.0,68414.0,0.003254]
[1729420661838,0.73668428,68415.0,68414.0,0.003254]
[1729420662540,0.78048403,68415.0,68414.0,0.003254]
[1729420664191,0.73668428,68415.0,68414.0,0.003254]
[1729420665343,0.78047914,68415.0,68414.0,0.003254]
[1729420672450,0.63151999,68415.0,68414.0,0.003254]
[1729420683899,0.63151416,68415.0,68414.0,0.003254]
[1729420684143,0.58772513,68415.0,68414.0,0.003254]
[1729420685033,0.65340851,68415.0,68414.0,0.003254]
[1729420687132,0.67628229,68415.0,68414.0,0.003254]
[1729420687607,0.61059891,68415.0,68414.0,0.003254]
[1729420687836,0.75955806,68415.0,68414.0,0.003254]
[1729420688516,0.82524013,68415.0,68414.0,0.003254]
[1729420689279,0.75955806,68415.0,68414.0,0.003254]
[1729420692312,0.82524239,68415.0,68414.0,0.003254]
[1729420692518,0.92120314,68415.0,68414.0,0.003254]
[1729420692939,0.75955806,68415.0,68414.0,0.003254]
[1729420693147,0.82524282,68415.0,68414.0,0.003254]
[1729420693371,0.82524389,68415.0,68414.0,0.003254]
[1729420693578,0.92120458,68415.0,68414.0,0.003254]
[1729420693785,0.75955806,68415.0,68414.0,0.003254]
[1729420694933,0.92120857,68415.0,68414.0,0.003254]
[1729420695142,0.75955806,68415.0,68414.0,0.003254]
[1729420695357,0.92120905,68415.0,68414.0,0.003254]
[1729420695982,0.75955806,68415.0,68414.0,0.003254]
[1729420696402,1.00880568,68415.0,68414.0,0.003254]
[1729420696603,0.92122493,68415.0,68414.0,0.003254]
[1729420696828,0.75955806,68415.0,68414.0,0.003254]
[1729420697456,1.00881342,68415.0,68414.0,0.003254]
[1729420697657,0.92123267,68415.0,68414.0,0.003254]
[1729420697871,1.00881342,68415.0,68414.0,0.003254]
[1729420698076,0.92323267,68415.0,68414.0,0.003254]
[1729420698324,0.75955806,68415.0,68414.0,0.003254]
[1729420698538,1.00883247,68415.0,68414.0,0.003254]
[1729420698743,0.92123475,68415.0,68414.0,0.003254]
[1729420699357,1.03073007,68415.0,68414.0,0.003254]
[1729420700861,1.00883835,68415.0,68414.0,0.003254]
[1729420701271,0.92123475,68415.0,68414.0,0.003254]
[1729420701873,1.00884448,68415.0,68414.0,0.003254]
[1729420702121,0.92123475,68415.0,68414.0,0.003254]
[1729420703949,0.93123475,68415.0,68414.0,0.003254]
[1729420706490,0.93323475,68415.0,68414.0,0.003254]
[1729420712882,0.93324579,68415.0,68414.0,0.003254]
[1729420716969,0.91037201,68415.0,68414.0,0.003254]
[1729420718443,1.01987481,68415.0,68414.0,0.003254]
[1729420719612,0.91037201,68415.0,68414.0,0.003254]
[1729420722509,0.91033415,68415.0,68414.0,0.003254]
[1729420732446,0.91031799,68415.0,68414.0,0.003254]
[1729420737228,0.91031288,68415.0,68414.0,0.003254]
[1729420740933,0.95561925,68415.0,68414.0,0.003254]
[1729420741156,0.91031429,68415.0,68414.0,0.003254]
[1729420742539,0.95561872,68415.0,68414.0,0.003254]
[1729420742805,0.91031429,68415.0,68414.0,0.003254]
[1729420743780,0.95562081,68415.0,68414.0,0.003254]
[1729420744245,0.91031429,68415.0,68414.0,0.003254]
[1729420744705,0.95562097,68415.0,68414.0,0.003254]
[1729420744925,0.91031429,68415.0,68414.0,0.003254]
[1729420745142,0.91030811,68415.0,68414.0,0.003254]
[1729420745362,0.95561432,68415.0,68414.0,0.003254]
[1729420746012,0.91030811,68415.0,68414.0,0.003254]
[1729420746887,0.95561473,68415.0,68414.0,0.003254]
[1729420747090,0.91030811,68415.0,68414.0,0.003254]
[1729420748244,0.95561516,68415.0,68414.0,0.003254]
[1729420750401,0.95560929,68415.0,68414.0,0.003254]
[1729420755292,0.79399133,68415.0,68414.0,0.003254]
[1729420755506,0.95560655,68415.0,68414.0,0.003254]
[1729420756221,0.79399133,68415.0,68414.0,0.003254]
[1729420756473,0.79179883,68415.0,68414.0,0.003254]
[1729420757463,0.79399168,68415.0,68414.0,0.003254]
[1729420758621,0.74868463,68415.0,68414.0,0.003254]
[1729420758881,0.7939996,68415.0,68414.0,0.003254]
[1729420759545,0.74868463,68415.0,68414.0,0.003254]
[1729420759747,0.79399973,68415.0,68414.0,0.003254]
[1729420760370,0.79399948,68415.0,68414.0,0.003254]
[1729420761186,0.74868463,68415.0,68414.0,0.003254]
[1729420761635,0.79399944,68415.0,68414.0,0.003254]
[1729420761844,0.74868463,68415.0,68414.0,0.003254]
[1729420762749,0.79399965,68415.0,68414.0,0.003254]
[1729420763160,0.79399984,68415.0,68414.0,0.003254]
[1729420764274,0.74868463,68415.0,68414.0,0.003254]
[1729420764490,0.79180734,68415.0,68414.0,0.003254]
[1729420765538,0.74868463,68415.0,68414.0,0.003254]
[1729420765752,0.79400062,68415.0,68414.0,0.003254]
[1729420767285,0.79400043,68415.0,68414.0,0.003254]
[1729420768141,0.79180758,68415.0,68414.0,0.003254]
[1729420768811,0.79400043,68415.0,68414.0,0.003254]
[1729420769449,0.9253849,68415.0,68414.0,0.003254]
[1729420771222,0.79400043,68415.0,68414.0,0.003254]
[1729420777474,0.81687631,68415.0,68414.0,0.003254]
[1729420778530,0.66791716,68415.0,68414.0,0.003254]
[1729420797048,0.64504128,68415.0,68414.0,0.003254]
[1729420800130,0.64304128,68415.0,68414.0,0.003254]
[1729420801045,0.64504128,68415.0,68414.0,0.003254]
[1729420801848,0.64304128,68415.0,68414.0,0.003254]
[1729420802780,0.64504128,68415.0,68414.0,0.003254]
[1729420803710,0.76641121,68415.0,68414.0,0.003254]
[1729420806400,0.76441121,68415.0,68414.0,0.003254]
[1729420807302,0.64704128,68415.0,68414.0,0.003254]
[1729420808191,0.64904128,68415.0,68414.0,0.003254]
[1729420808408,0.64704128,68415.0,68414.0,0.003254]
[1729420811192,0.64904128,68415.0,68414.0,0.003254]
[1729420813077,0.64704128,68415.0,68414.0,0.003254]
[1729420818021,0.79600043,68415.0,68414.0,0.003254]
[1729420818689,0.79800043,68415.0,68414.0,0.003254]
[1729420820892,0.64704128,68415.0,68414.0,0.003254]
[1729420823039,0.47544128,68415.0,68414.0,0.003254]
[1729420826390,0.43012548,68415.0,68414.0,0.003254]
[1729420826817,0.47544279,68415.0,68414.0,0.003254]
[1729420827235,0.43012548,68415.0,68414.0,0.003254]
[1729420827649,0.47544271,68415.0,68414.0,0.003254]
[1729420828292,0.43012548,68415.0,68414.0,0.003254]
[1729420832427,0.53966616,68415.0,68414.0,0.003254]
[1729420832641,0.43012548,68415.0,68414.0,0.003254]
[1729420833264,0.169923,68410.0,68409.0,0.001654]
[1729420833475,0.48049552,68410.0,68409.0,0.001654]
[1729420836521,0.48049549,68410.0,68409.0,0.001654]
[1729420838059,0.41477514,68410.0,68409.0,0.001654]
[1729420845814,0.45858447,68410.0,68409.0,0.001654]
[1729420846289,0.45858408,68410.0,68409.0,0.001654]
[1729420846798,0.41477514,68410.0,68409.0,0.001654]
[1729420847034,0.45858408,68410.0,68409.0,0.001654]
[1729420847709,0.41477514,68410.0,68409.0,0.001654]
[1729420847932,0.45858408,68410.0,68409.0,0.001654]
[1729420851125,0.4585823,68410.0,68409.0,0.001654]
[1729420852743,0.4578363,68410.0,68409.0,0.000908]
[1729420854573,0.45783793,68410.0,68409.0,0.000908]
[1729420855653,0.45783853,68410.0,68409.0,0.000908]
[1729420856647,0.45783847,68410.0,68409.0,0.000908]
[1729420857749,0.47973988,68410.0,68409.0,0.000908]
[1729420858630,0.41402914,68410.0,68409.0,0.000908]
[1729420858843,0.47973988,68410.0,68409.0,0.000908]
[1729420859984,0.41402914,68410.0,68409.0,0.000908]
[1729420864363,0.14895915,68410.0,68409.0,0.000908]
[1729420864601,0.08844132,68414.0,68409.0,0.097808]
[1729420864602,0.04464384,68414.0,68409.0,0.097808]
[1729420864824,0.14895915,68413.0,68410.0,0.0785]
[1729420865058,0.14895915,68413.0,68411.0,0.0969]
[1729420868240,0.21907885,68412.0,68411.0,0.0969]
[1729420868498,0.146177,68410.0,68409.0,0.000908]
[1729420868684,0.29513615,68410.0,68409.0,0.000908]
[1729420871002,0.14895915,68410.0,68409.0,0.000908]
[1729420882051,0.14978615,68410.0,68409.0,0.000908]
[1729420886342,0.47156315,68410.0,68409.0,0.000908]
[1729420889785,0.49456315,68410.0,68409.0,0.000908]
[1729420910021,0.59124702,68410.0,68409.0,0.000908]
[1729420950561,0.61412312,68410.0,68409.0,0.000908]
[1729420950766,0.65793135,68410.0,68409.0,0.000908]
[1729420951421,0.8068905,68410.0,68409.0,0.000908]
[1729420955640,0.82879462,68410.0,68409.0,0.000908]
[1729420956001,0.85069873,68410.0,68409.0,0.000908]
[1729420956226,0.85269873,68410.0,68409.0,0.000908]
[1729420956435,0.76508227,68410.0,68409.0,0.000908]
[1729420956637,0.8307862,68410.0,68409.0,0.000908]
[1729420957110,0.76508227,68410.0,68409.0,0.000908]
[1729420957291,0.82878561,68410.0,68409.0,0.000908]
[1729420961444,0.76308227,68410.0,68409.0,0.000908]
[1729420961694,0.8287719,68410.0,68409.0,0.000908]
[1729420962760,0.67981275,68410.0,68409.0,0.000908]
[1729420962974,0.61412312,68410.0,68409.0,0.000908]
[1729420964545,0.67981275,68410.0,68409.0,0.000908]
[1729420964776,0.61412312,68410.0,68409.0,0.000908]
[1729420967604,0.65791243,68410.0,68409.0,0.000908]
[1729420967813,0.61412312,68410.0,68409.0,0.000908]
[1729420968696,0.6579131,68410.0,68409.0,0.000908]
[1729420969127,0.67980735,68410.0,68409.0,0.000908]
[1729420970267,0.82741006,68410.0,68409.0,0.000908]
[1729420970892,0.67980735,68410.0,68409.0,0.000908]
[1729420971098,0.61412312,68410.0,68409.0,0.000908]
[1729420971326,0.67980735,68410.0,68409.0,0.000908]
[1729420971563,0.65791278,68410.0,68409.0,0.000908]
[1729420972496,0.67980735,68410.0,68409.0,0.000908]
[1729420972722,0.82741006,68410.0,68409.0,0.000908]
[1729420972943,0.76172583,68410.0,68409.0,0.000908]
[1729420973509,0.80551604,68410.0,68409.0,0.000908]
[1729420973984,0.76172583,68410.0,68409.0,0.000908]
[1729420974431,0.82741006,68410.0,68409.0,0.000908]
[1729420975360,0.61412312,68410.0,68409.0,0.000908]
[1729420975590,0.67980735,68410.0,68409.0,0.000908]
[1729420976486,0.67980713,68410.0,68409.0,0.000908]
[1729420978825,0.61412312,68410.0,68409.0,0.000908]
[1729420979506,0.67980713,68410.0,68409.0,0.000908]
[1729420979782,0.67981124,68410.0,68409.0,0.000908]
[1729420980022,0.67981035,68410.0,68409.0,0.000908]
[1729420980683,0.61412312,68410.0,68409.0,0.000908]
[1729420981844,0.67981389,68410.0,68409.0,0.000908]
[1729420982081,0.65693779,68410.0,68409.0,0.000908]
[1729420983507,0.65693839,68410.0,68409.0,0.000908]
[1729420983739,0.59124702,68410.0,68409.0,0.000908]
[1729420983970,0.65693968,68410.0,68409.0,0.000908]
[1729420984665,0.80225555,68410.0,68409.0,0.000908]
[1729420985771,0.80225623,68410.0,68409.0,0.000908]
[1729420986029,0.73656289,68410.0,68409.0,0.000908]
[1729420986514,0.80225633,68410.0,68409.0,0.000908]
[1729420987169,0.80225699,68410.0,68409.0,0.000908]
[1729420987456,0.80225888,68410.0,68409.0,0.000908]
[1729420987694,0.65694301,68410.0,68409.0,0.000908]
[1729420988142,0.59124702,68410.0,68409.0,0.000908]
[1729420988363,0.65694257,68410.0,68409.0,0.000908]
[1729420988809,0.65694352,68410.0,68409.0,0.000908]
[1729420989073,0.59124702,68410.0,68409.0,0.000908]
[1729420989565,0.65694488,68410.0,68409.0,0.000908]
[1729420990009,0.59124702,68410.0,68409.0,0.000908]
[1729420990712,0.65694622,68410.0,68409.0,0.000908]
[1729420991372,0.59124702,68410.0,68409.0,0.000908]
[1729420992294,0.65694762,68410.0,68409.0,0.000908]
[1729420992586,0.59124702,68410.0,68409.0,0.000908]
[1729420993917,0.67884417,68410.0,68409.0,0.000908]
[1729420994133,0.81759493,68410.0,68409.0,0.000908]
[1729420994425,2.20487663,68410.0,68409.0,0.000908]
[1729420994654,2.09729422,68410.0,68409.0,0.000908]
[1729420994874,1.98779778,68410.0,68409.0,0.000908]
[1729420996286,2.09729996,68410.0,68409.0,0.000908]
[1729420996513,1.98779778,68410.0,68409.0,0.000908]
[1729420999954,0.73199778,68410.0,68409.0,0.000908]
[1729421002647,0.74199778,68410.0,68409.0,0.000908]
[1729421005155,0.78730468,68410.0,68409.0,0.000908]
[1729421005846,2.04310468,68410.0,68409.0,0.000908]
[1729421011807,0.78730468,68410.0,68409.0,0.000908]
[1729421017809,2.04310468,68410.0,68409.0,0.000908]
[1729421024663,1.9043375,68410.0,68409.0,0.000908]
[1729421038809,1.9023375,68410.0,68409.0,0.000908]
[1729421039524,1.7267375,68410.0,68409.0,0.000908]
[1729421041291,1.68144702,68410.0,68409.0,0.000908]
[1729421041512,0.42564702,68410.0,68409.0,0.000908]
[1729421042623,0.44852459,68410.0,68409.0,0.000908]
[1729421042860,0.55801742,68410.0,68409.0,0.000908]
[1729421045196,0.44852459,68410.0,68409.0,0.000908]
[1729421048360,0.42564702,68410.0,68409.0,0.000908]
[1729421048562,0.44852438,68410.0,68409.0,0.000908]
[1729421048769,0.42564702,68410.0,68409.0,0.000908]
[1729421053540,0.41564702,68410.0,68409.0,0.000908]
[1729421055085,0.42564702,68410.0,68409.0,0.000908]
[1729421055942,0.41564702,68410.0,68409.0,0.000908]
[1729421056377,0.42564702,68410.0,68409.0,0.000908]
[1729421056788,0.41564702,68410.0,68409.0,0.000908]
[1729421057208,0.52512407,68410.0,68409.0,0.000908]
[1729421059670,0.41564702,68410.0,68409.0,0.000908]
[1729421059884,0.52512125,68410.0,68409.0,0.000908]
[1729421064293,0.41564702,68410.0,68409.0,0.000908]
[1729421064709,0.52512125,68410.0,68409.0,0.000908]
[1729421066002,0.52511588,68410.0,68409.0,0.000908]
[1729421067617,0.74148996,68410.0,68409.0,0.000908]
[1729421067874,0.79547857,68410.0,68409.0,0.000908]
[1729421069078,0.74365427,68410.0,68409.0,0.000908]
[1729421073053,0.74165427,68410.0,68409.0,0.000908]
[1729421074637,1.99745427,68410.0,68409.0,0.000908]
[1729421074831,2.22362306,68410.0,68409.0,0.000908]
[1729421077415,2.37258221,68410.0,68409.0,0.000908]
[1729421080497,2.37241772,68410.0,68409.0,0.000908]
[1729421086976,2.50358378,68410.0,68409.0,0.000908]
[1729421087202,2.50358265,68410.0,68409.0,0.000908]
[1729421087904,2.37241772,68410.0,68409.0,0.000908]
[1729421088340,2.50358073,68410.0,68409.0,0.000908]
[1729421090253,2.37236276,68410.0,68409.0,0.000908]
[1729421090410,2.35456676,68410.0,68409.0,0.000908]
[1729421091444,1.99745427,68410.0,68409.0,0.000908]
[1729421092866,2.12861742,68410.0,68409.0,0.000908]
[1729421093090,1.99745427,68410.0,68409.0,0.000908]
[1729421094571,2.12861742,68410.0,68409.0,0.000908]
[1729421094784,1.99745427,68410.0,68409.0,0.000908]
[1729421099504,2.12105478,68410.0,68409.0,0.000908]
[1729421100144,2.25224686,68410.0,68409.0,0.000908]
[1729421100595,2.12105478,68410.0,68409.0,0.000908]
[1729421102034,2.25224686,68410.0,68409.0,0.000908]
[1729421103518,2.25227304,68410.0,68409.0,0.000908]
[1729421104150,2.34709576,68410.0,68409.0,0.000908]